[Event "Titled Tuesday Blitz November 22 Late 2022"]
[White "Curtis, John"]
[Black "Prem, Pranav"]
[WhiteFideId "3200256"]
[BlackFideId "30901057"]
[WhiteElo "2203"]
[BlackElo "1970"]
[Result "0-1"]
[Round "09"]
[TimeControl "180+1"]
[Date "2022.11.23"]
[WhiteClock "0:00:27"]
[BlackClock "0:00:18"]

1. d4 {[%clk 0:03:00]}  d5 {[%clk 0:02:59]} 2. Nf3 {[%clk 0:02:59]}  Nf6 {[%clk 0:02:57]} 3. c4 {[%clk 0:02:59]}  e6 {[%clk 0:02:57]} 4. Nc3 {[%clk 0:02:58]}  Be7 {[%clk 0:02:56]} 5. Bg5 {[%clk 0:02:58]}  O-O {[%clk 0:02:54]} 6. e3 {[%clk 0:02:58]}  Nbd7 {[%clk 0:02:51]} 7. cxd5 {[%clk 0:02:56]}  exd5 {[%clk 0:02:47]} 8. Rc1 {[%clk 0:02:50]}  c6 {[%clk 0:02:43]} 9. Bd3 {[%clk 0:02:45]}  Re8 {[%clk 0:02:42]} 10. a3 {[%clk 0:02:38]}  a5 {[%clk 0:02:37]} 11. O-O {[%clk 0:02:37]}  Nf8 {[%clk 0:02:36]} 12. Nd2 {[%clk 0:02:32]}  Ng6 {[%clk 0:02:28]} 13. Bxf6 {[%clk 0:02:26]}  Bxf6 {[%clk 0:02:27]} 14. b4 {[%clk 0:02:25]}  axb4 {[%clk 0:02:27]} 15. axb4 {[%clk 0:02:25]}  Be7 {[%clk 0:02:18]} 16. b5 {[%clk 0:02:23]}  Bd6 {[%clk 0:02:16]} 17. bxc6 {[%clk 0:02:16]}  bxc6 {[%clk 0:02:17]} 18. Nf3 {[%clk 0:02:01]}  Qf6 {[%clk 0:02:11]} 19. e4 {[%clk 0:01:59]}  Bg4 {[%clk 0:01:11]} 20. e5 {[%clk 0:01:57]}  Bxf3 {[%clk 0:01:11]} 21. exf6 {[%clk 0:01:49]}  Bxd1 {[%clk 0:01:10]} 22. Bxg6 {[%clk 0:01:25]}  hxg6 {[%clk 0:00:49]} 23. Nxd1 {[%clk 0:01:21]}  Ra6 {[%clk 0:00:47]} 24. fxg7 {[%clk 0:01:19]}  Re4 {[%clk 0:00:44]} 25. Rb1 {[%clk 0:00:56]}  Rxd4 {[%clk 0:00:40]} 26. Rb7 {[%clk 0:00:56]}  Kxg7 {[%clk 0:00:39]} 27. Rd7 {[%clk 0:00:56]}  Bc5 {[%clk 0:00:34]} 28. Ne3 {[%clk 0:00:47]}  Rd2 {[%clk 0:00:26]} 29. Re1 {[%clk 0:00:32]}  Raa2 {[%clk 0:00:25]} 30. Nd1 {[%clk 0:00:27]}  Ra1 {[%clk 0:00:18]} 0-1


[Site "https://www.chess.com"]

[Event "Titled Tuesday Blitz November 22 Late 2022"]
[White "D`Arruda, Ricardo D."]
[Black "Burke, Paul"]
[WhiteFideId "100692"]
[BlackFideId "2605767"]
[WhiteElo "2495"]
[BlackElo "1931"]
[Result "1/2-1/2"]
[Round "09"]
[TimeControl "180+1"]
[Date "2022.11.23"]
[WhiteClock "0:00:41"]
[BlackClock "0:00:19"]

1. Nf3 {[%clk 0:03:00]}  a6 {[%clk 0:02:59]} 2. d4 {[%clk 0:03:00]}  d6 {[%clk 0:02:59]} 3. e4 {[%clk 0:03:00]}  g6 {[%clk 0:02:59]} 4. Nc3 {[%clk 0:03:00]}  Bg7 {[%clk 0:02:58]} 5. Be3 {[%clk 0:02:57]}  h6 {[%clk 0:02:58]} 6. Qd2 {[%clk 0:02:56]}  Nd7 {[%clk 0:02:58]} 7. O-O-O {[%clk 0:02:55]}  e6 {[%clk 0:02:58]} 8. h4 {[%clk 0:02:54]}  Ne7 {[%clk 0:02:58]} 9. Bd3 {[%clk 0:02:32]}  b6 {[%clk 0:02:57]} 10. d5 {[%clk 0:02:30]}  e5 {[%clk 0:02:56]} 11. h5 {[%clk 0:02:29]}  g5 {[%clk 0:02:33]} 12. Ne2 {[%clk 0:02:26]}  Nf6 {[%clk 0:02:28]} 13. Ng3 {[%clk 0:02:20]}  Ng4 {[%clk 0:02:25]} 14. Kb1 {[%clk 0:02:11]}  Nxe3 {[%clk 0:02:24]} 15. fxe3 {[%clk 0:02:12]}  f6 {[%clk 0:02:22]} 16. Nh2 {[%clk 0:02:08]}  Bd7 {[%clk 0:02:20]} 17. Be2 {[%clk 0:02:07]}  Qc8 {[%clk 0:02:18]} 18. c4 {[%clk 0:02:04]}  O-O {[%clk 0:02:16]} 19. Rhf1 {[%clk 0:01:56]}  f5 {[%clk 0:02:11]} 20. exf5 {[%clk 0:01:55]}  Nxf5 {[%clk 0:02:09]} 21. Nxf5 {[%clk 0:01:56]}  Bxf5+ {[%clk 0:02:09]} 22. Ka1 {[%clk 0:01:47]}  Qd7 {[%clk 0:02:03]} 23. g4 {[%clk 0:01:34]}  Bh7 {[%clk 0:02:00]} 24. Rxf8+ {[%clk 0:01:25]}  Rxf8 {[%clk 0:01:57]} 25. Rf1 {[%clk 0:01:26]}  Rxf1+ {[%clk 0:01:47]} 26. Nxf1 {[%clk 0:01:27]}  Qf7 {[%clk 0:01:44]} 27. Qe1 {[%clk 0:01:25]}  e4 {[%clk 0:01:39]} 28. a3 {[%clk 0:00:58]}  Qf6 {[%clk 0:01:37]} 29. Qd2 {[%clk 0:00:58]}  a5 {[%clk 0:01:26]} 30. Ka2 {[%clk 0:00:57]}  Kh8 {[%clk 0:01:05]} 31. Ng3 {[%clk 0:00:57]}  Qe5 {[%clk 0:01:00]} 32. Nf5 {[%clk 0:00:49]}  Bxf5 {[%clk 0:00:58]} 33. gxf5 {[%clk 0:00:50]}  Qxf5 {[%clk 0:00:57]} 34. Bd1 {[%clk 0:00:47]}  g4 {[%clk 0:00:38]} 35. Qg2 {[%clk 0:00:46]}  Qg5 {[%clk 0:00:26]} 36. Qxg4 {[%clk 0:00:38]}  Qxg4 {[%clk 0:00:25]} 37. Bxg4 {[%clk 0:00:38]}  Bf6 {[%clk 0:00:23]} 38. Bf5 {[%clk 0:00:38]}  Bg5 {[%clk 0:00:23]} 39. Bxe4 {[%clk 0:00:38]}  Bxe3 {[%clk 0:00:23]} 40. a4 {[%clk 0:00:36]}  Bc5 {[%clk 0:00:22]} 41. b3 {[%clk 0:00:37]}  Kg7 {[%clk 0:00:21]} 42. Bg6 {[%clk 0:00:37]}  Kf6 {[%clk 0:00:21]} 43. Kb2 {[%clk 0:00:38]}  Ke5 {[%clk 0:00:20]} 44. Kc2 {[%clk 0:00:39]}  Kd4 {[%clk 0:00:20]} 45. Bf7 {[%clk 0:00:38]}  Ke3 {[%clk 0:00:18]} 46. Bg6 {[%clk 0:00:39]}  Kd4 {[%clk 0:00:18]} 47. Bf7 {[%clk 0:00:40]}  Ke3 {[%clk 0:00:19]} 48. Bg6 {[%clk 0:00:41]}  Kd4 {[%clk 0:00:19]} 1/2-1/2


[Site "https://www.chess.com"]

[Event "Titled Tuesday Blitz November 22 Late 2022"]
[White "Dudzinski, Pawel"]
[Black "Besedes, Danilo"]
[WhiteFideId "1117890"]
[BlackFideId "946796"]
[WhiteElo "2086"]
[BlackElo "2352"]
[Result "0-1"]
[Round "09"]
[TimeControl "180+1"]
[Date "2022.11.23"]
[WhiteClock "0:00:03"]
[BlackClock "0:00:14"]

1. e4 {[%clk 0:02:54]}  d5 {[%clk 0:02:57]} 2. e5 {[%clk 0:02:52]}  c5 {[%clk 0:02:56]} 3. f4 {[%clk 0:02:53]}  Nc6 {[%clk 0:02:56]} 4. Nf3 {[%clk 0:02:53]}  Bg4 {[%clk 0:02:56]} 5. h3 {[%clk 0:02:54]}  Bxf3 {[%clk 0:02:54]} 6. Qxf3 {[%clk 0:02:55]}  h5 {[%clk 0:02:55]} 7. c3 {[%clk 0:02:51]}  e6 {[%clk 0:02:54]} 8. g3 {[%clk 0:02:48]}  Nge7 {[%clk 0:02:53]} 9. Bg2 {[%clk 0:02:47]}  Nf5 {[%clk 0:02:49]} 10. d3 {[%clk 0:02:46]}  g5 {[%clk 0:02:39]} 11. O-O {[%clk 0:02:41]}  g4 {[%clk 0:02:27]} 12. hxg4 {[%clk 0:02:34]}  hxg4 {[%clk 0:02:28]} 13. Qxg4 {[%clk 0:02:35]}  Be7 {[%clk 0:02:25]} 14. Nd2 {[%clk 0:02:25]}  Kd7 {[%clk 0:02:16]} 15. Nf3 {[%clk 0:02:14]}  Rg8 {[%clk 0:02:12]} 16. Ng5 {[%clk 0:02:14]}  Nxe5 {[%clk 0:01:52]} 17. fxe5 {[%clk 0:02:06]}  Bxg5 {[%clk 0:01:45]} 18. Rxf5 {[%clk 0:02:05]}  Be3+ {[%clk 0:01:42]} 19. Bxe3 {[%clk 0:02:04]}  Rxg4 {[%clk 0:01:42]} 20. Rxf7+ {[%clk 0:02:04]}  Kc6 {[%clk 0:01:32]} 21. Bf4 {[%clk 0:02:00]}  Qg8 {[%clk 0:01:29]} 22. Rf6 {[%clk 0:01:57]}  Rf8 {[%clk 0:01:28]} 23. Rf1 {[%clk 0:01:49]}  Rxf6 {[%clk 0:01:27]} 24. exf6 {[%clk 0:01:50]}  Qf7 {[%clk 0:01:16]} 25. Be5 {[%clk 0:01:42]}  Rg5 {[%clk 0:01:14]} 26. d4 {[%clk 0:01:41]}  cxd4 {[%clk 0:01:14]} 27. cxd4 {[%clk 0:01:42]}  Rf5 {[%clk 0:01:08]} 28. Rc1+ {[%clk 0:01:31]}  Kb6 {[%clk 0:01:07]} 29. Rf1 {[%clk 0:00:35]}  Rxf1+ {[%clk 0:01:05]} 30. Kxf1 {[%clk 0:00:34]}  Kc6 {[%clk 0:00:56]} 31. Kf2 {[%clk 0:00:33]}  Qh5 {[%clk 0:00:53]} 32. Bf3 {[%clk 0:00:25]}  Qh2+ {[%clk 0:00:47]} 33. Bg2 {[%clk 0:00:23]}  Kd7 {[%clk 0:00:46]} 34. g4 {[%clk 0:00:23]}  Qh4+ {[%clk 0:00:43]} 35. Kf3 {[%clk 0:00:23]}  Ke8 {[%clk 0:00:43]} 36. Kf4 {[%clk 0:00:14]}  Kf7 {[%clk 0:00:36]} 37. Bf3 {[%clk 0:00:11]}  Kg6 {[%clk 0:00:32]} 38. Ke3 {[%clk 0:00:09]}  Qe1+ {[%clk 0:00:32]} 39. Be2 {[%clk 0:00:09]}  Qc1+ {[%clk 0:00:32]} 40. Kf3 {[%clk 0:00:08]}  Qd2 {[%clk 0:00:29]} 41. b3 {[%clk 0:00:04]}  a5 {[%clk 0:00:25]} 42. a4 {[%clk 0:00:03]}  Qc3+ {[%clk 0:00:25]} 43. Kf4 {[%clk 0:00:02]}  Qxb3 {[%clk 0:00:24]} 44. g5 {[%clk 0:00:02]}  Qxa4 {[%clk 0:00:22]} 45. Bd3+ {[%clk 0:00:02]}  Kf7 {[%clk 0:00:20]} 46. g6+ {[%clk 0:00:02]}  Kf8 {[%clk 0:00:20]} 47. g7+ {[%clk 0:00:02]}  Kg8 {[%clk 0:00:18]} 48. Bg6 {[%clk 0:00:03]}  Qd7 {[%clk 0:00:17]} 49. f7+ {[%clk 0:00:03]}  Qxf7+ {[%clk 0:00:17]} 50. Bxf7+ {[%clk 0:00:04]}  Kxf7 {[%clk 0:00:18]} 51. Bc7 {[%clk 0:00:03]}  a4 {[%clk 0:00:15]} 52. Ke3 {[%clk 0:00:02]}  a3 {[%clk 0:00:14]} 53. Kd3 {[%clk 0:00:02]}  a2 {[%clk 0:00:14]} 54. g8=Q+ {[%clk 0:00:01]}  Kxg8 {[%clk 0:00:14]} 55. Be5 {[%clk 0:00:02]}  a1=Q {[%clk 0:00:14]} 56. Kc2 {[%clk 0:00:03]}  Qa4+ {[%clk 0:00:14]} 0-1


[Site "https://www.chess.com"]

[Event "Titled Tuesday Blitz November 22 Late 2022"]
[White "Fernandez Garcia, Gumersindo"]
[Black "Rose, Felix"]
[WhiteFideId "24516740"]
[BlackFideId "5105722"]
[WhiteElo "2140"]
[BlackElo "2039"]
[Result "1/2-1/2"]
[Round "09"]
[TimeControl "180+1"]
[Date "2022.11.23"]
[WhiteClock "0:02:17"]
[BlackClock "0:00:35"]

1. e4 {[%clk 0:03:00]}  c5 {[%clk 0:02:59]} 2. c3 {[%clk 0:03:01]}  Nf6 {[%clk 0:02:57]} 3. e5 {[%clk 0:03:00]}  Nd5 {[%clk 0:02:58]} 4. d4 {[%clk 0:03:00]}  cxd4 {[%clk 0:02:58]} 5. cxd4 {[%clk 0:03:01]}  d6 {[%clk 0:02:59]} 6. Bc4 {[%clk 0:02:59]}  Nb6 {[%clk 0:02:56]} 7. Bb5+ {[%clk 0:02:59]}  Bd7 {[%clk 0:02:53]} 8. Bxd7+ {[%clk 0:02:57]}  Qxd7 {[%clk 0:02:53]} 9. Nf3 {[%clk 0:02:55]}  Nc6 {[%clk 0:02:50]} 10. O-O {[%clk 0:02:51]}  e6 {[%clk 0:02:49]} 11. Nc3 {[%clk 0:02:50]}  dxe5 {[%clk 0:01:47]} 12. dxe5 {[%clk 0:02:51]}  Be7 {[%clk 0:01:41]} 13. Be3 {[%clk 0:02:42]}  Qxd1 {[%clk 0:01:33]} 14. Raxd1 {[%clk 0:02:42]}  Nc4 {[%clk 0:01:25]} 15. Nb5 {[%clk 0:02:42]}  O-O {[%clk 0:00:37]} 16. Rd7 {[%clk 0:02:26]}  Nxe3 {[%clk 0:00:21]} 17. fxe3 {[%clk 0:02:25]}  b6 {[%clk 0:00:17]} 18. Rc1 {[%clk 0:02:22]}  Bc5 {[%clk 0:00:15]} 19. Nbd4 {[%clk 0:02:23]}  Rfc8 {[%clk 0:00:12]} 20. Kf2 {[%clk 0:02:22]}  a5 {[%clk 0:00:10]} 21. Ke2 {[%clk 0:02:19]}  h6 {[%clk 0:00:10]} 22. Nb5 {[%clk 0:02:16]}  Rd8 {[%clk 0:00:06]} 23. Rc7 {[%clk 0:02:15]}  Rac8 {[%clk 0:00:06]} 24. a3 {[%clk 0:02:14]}  Rxc7 {[%clk 0:00:07]} 25. Nxc7 {[%clk 0:02:15]}  Rc8 {[%clk 0:00:07]} 26. Nb5 {[%clk 0:02:15]}  Be7 {[%clk 0:00:07]} 27. Nd6 {[%clk 0:02:14]}  Nd4+ {[%clk 0:00:07]} 28. exd4 {[%clk 0:02:05]}  Rxc1 {[%clk 0:00:08]} 29. Kd3 {[%clk 0:02:06]}  Rf1 {[%clk 0:00:08]} 30. Nc4 {[%clk 0:01:59]}  Bd8 {[%clk 0:00:07]} 31. Ncd2 {[%clk 0:01:56]}  Rf2 {[%clk 0:00:07]} 32. Ne1 {[%clk 0:01:56]}  b5 {[%clk 0:00:05]} 33. Ke3 {[%clk 0:01:57]}  Rf5 {[%clk 0:00:05]} 34. Nef3 {[%clk 0:01:55]}  Bg5+ {[%clk 0:00:05]} 35. Ke2 {[%clk 0:01:52]}  Bxd2 {[%clk 0:00:06]} 36. Kxd2 {[%clk 0:01:53]}  g5 {[%clk 0:00:05]} 37. Ke3 {[%clk 0:01:51]}  g4 {[%clk 0:00:05]} 38. Ne1 {[%clk 0:01:51]}  Rf1 {[%clk 0:00:05]} 39. Ke2 {[%clk 0:01:51]}  Rf4 {[%clk 0:00:06]} 40. Ke3 {[%clk 0:01:51]}  Rf1 {[%clk 0:00:06]} 41. Ke2 {[%clk 0:01:51]}  Rf5 {[%clk 0:00:06]} 42. Nd3 {[%clk 0:01:50]}  h5 {[%clk 0:00:06]} 43. Nc5 {[%clk 0:01:44]}  h4 {[%clk 0:00:06]} 44. Ne4 {[%clk 0:01:43]}  g3 {[%clk 0:00:05]} 45. hxg3 {[%clk 0:01:42]}  hxg3 {[%clk 0:00:06]} 46. Nxg3 {[%clk 0:01:43]}  Rg5 {[%clk 0:00:06]} 47. Kf3 {[%clk 0:01:42]}  Kh7 {[%clk 0:00:07]} 48. Ne4 {[%clk 0:01:42]}  Rg8 {[%clk 0:00:07]} 49. Nf6+ {[%clk 0:01:42]}  Kg7 {[%clk 0:00:08]} 50. Nxg8 {[%clk 0:01:43]}  Kxg8 {[%clk 0:00:08]} 51. Ke4 {[%clk 0:01:44]}  Kg7 {[%clk 0:00:09]} 52. d5 {[%clk 0:01:45]}  exd5+ {[%clk 0:00:09]} 53. Kxd5 {[%clk 0:01:46]}  Kg6 {[%clk 0:00:10]} 54. g4 {[%clk 0:01:46]}  b4 {[%clk 0:00:10]} 55. axb4 {[%clk 0:01:45]}  axb4 {[%clk 0:00:11]} 56. Kc4 {[%clk 0:01:46]}  Kg5 {[%clk 0:00:11]} 57. Kxb4 {[%clk 0:01:47]}  Kxg4 {[%clk 0:00:12]} 58. Kc5 {[%clk 0:01:47]}  Kf5 {[%clk 0:00:12]} 59. Kd5 {[%clk 0:01:48]}  f6 {[%clk 0:00:12]} 60. exf6 {[%clk 0:01:48]}  Kxf6 {[%clk 0:00:12]} 61. b4 {[%clk 0:01:49]}  Ke7 {[%clk 0:00:11]} 62. Kc6 {[%clk 0:01:50]}  Kd8 {[%clk 0:00:11]} 63. Kb7 {[%clk 0:01:50]}  Kd7 {[%clk 0:00:11]} 64. b5 {[%clk 0:01:51]}  Kd8 {[%clk 0:00:12]} 65. b6 {[%clk 0:01:52]}  Kd7 {[%clk 0:00:12]} 66. Ka7 {[%clk 0:01:53]}  Kc8 {[%clk 0:00:12]} 67. b7+ {[%clk 0:01:54]}  Kd7 {[%clk 0:00:12]} 68. b8=Q {[%clk 0:01:54]}  Kc6 {[%clk 0:00:13]} 69. Qb6+ {[%clk 0:01:43]}  Kd5 {[%clk 0:00:13]} 70. Kb7 {[%clk 0:01:43]}  Kc4 {[%clk 0:00:13]} 71. Qc6+ {[%clk 0:01:44]}  Kd4 {[%clk 0:00:13]} 72. Kc7 {[%clk 0:01:45]}  Kd3 {[%clk 0:00:13]} 73. Qd6+ {[%clk 0:01:46]}  Kc4 {[%clk 0:00:14]} 74. Kc6 {[%clk 0:01:47]}  Kc3 {[%clk 0:00:14]} 75. Kc5 {[%clk 0:01:48]}  Kb3 {[%clk 0:00:14]} 76. Qd3+ {[%clk 0:01:48]}  Kb2 {[%clk 0:00:13]} 77. Qd2+ {[%clk 0:01:47]}  Kb3 {[%clk 0:00:13]} 78. Kd4 {[%clk 0:01:47]}  Ka3 {[%clk 0:00:11]} 79. Qc3+ {[%clk 0:01:45]}  Ka4 {[%clk 0:00:12]} 80. Qb2 {[%clk 0:01:44]}  Ka5 {[%clk 0:00:12]} 81. Qb3 {[%clk 0:01:45]}  Ka6 {[%clk 0:00:12]} 82. Qb4 {[%clk 0:01:45]}  Ka7 {[%clk 0:00:13]} 83. Qb5 {[%clk 0:01:46]}  Ka8 {[%clk 0:00:13]} 84. Ke3 {[%clk 0:01:46]}  Ka7 {[%clk 0:00:13]} 85. Kf2 {[%clk 0:01:47]}  Ka8 {[%clk 0:00:14]} 86. Kg2 {[%clk 0:01:48]}  Ka7 {[%clk 0:00:15]} 87. Kh2 {[%clk 0:01:49]}  Ka8 {[%clk 0:00:15]} 88. Kh1 {[%clk 0:01:50]}  Ka7 {[%clk 0:00:15]} 89. Kg1 {[%clk 0:01:51]}  Ka8 {[%clk 0:00:16]} 90. Kf1 {[%clk 0:01:52]}  Ka7 {[%clk 0:00:16]} 91. Ke1 {[%clk 0:01:53]}  Ka8 {[%clk 0:00:17]} 92. Kd1 {[%clk 0:01:54]}  Ka7 {[%clk 0:00:18]} 93. Kc1 {[%clk 0:01:54]}  Ka8 {[%clk 0:00:19]} 94. Kb1 {[%clk 0:01:55]}  Ka7 {[%clk 0:00:19]} 95. Ka1 {[%clk 0:01:56]}  Ka8 {[%clk 0:00:20]} 96. Ka2 {[%clk 0:01:57]}  Ka7 {[%clk 0:00:21]} 97. Kb2 {[%clk 0:01:58]}  Ka8 {[%clk 0:00:21]} 98. Kc2 {[%clk 0:01:59]}  Ka7 {[%clk 0:00:22]} 99. Kc3 {[%clk 0:02:00]}  Ka8 {[%clk 0:00:23]} 100. Kb3 {[%clk 0:02:01]}  Ka7 {[%clk 0:00:23]} 101. Ka3 {[%clk 0:02:02]}  Ka8 {[%clk 0:00:24]} 102. Ka4 {[%clk 0:02:03]}  Ka7 {[%clk 0:00:25]} 103. Kb4 {[%clk 0:02:03]}  Ka8 {[%clk 0:00:25]} 104. Kc4 {[%clk 0:02:04]}  Ka7 {[%clk 0:00:26]} 105. Kd4 {[%clk 0:02:05]}  Ka8 {[%clk 0:00:27]} 106. Ke4 {[%clk 0:02:06]}  Ka7 {[%clk 0:00:28]} 107. Kf4 {[%clk 0:02:07]}  Ka8 {[%clk 0:00:28]} 108. Kg4 {[%clk 0:02:08]}  Ka7 {[%clk 0:00:29]} 109. Kh4 {[%clk 0:02:09]}  Ka8 {[%clk 0:00:30]} 110. Kh5 {[%clk 0:02:10]}  Ka7 {[%clk 0:00:31]} 111. Kg5 {[%clk 0:02:11]}  Ka8 {[%clk 0:00:31]} 112. Kf5 {[%clk 0:02:12]}  Ka7 {[%clk 0:00:32]} 113. Ke5 {[%clk 0:02:12]}  Ka8 {[%clk 0:00:33]} 114. Kd5 {[%clk 0:02:13]}  Ka7 {[%clk 0:00:34]} 115. Kc5 {[%clk 0:02:14]}  Ka8 {[%clk 0:00:34]} 116. Kc6 {[%clk 0:02:15]}  Ka7 {[%clk 0:00:35]} 117. Kd6 {[%clk 0:02:16]}  Ka8 {[%clk 0:00:35]} 118. Ke6 {[%clk 0:02:17]} 1/2-1/2


[Site "https://www.chess.com"]

[Event "Titled Tuesday Blitz November 22 Late 2022"]
[White "Fernandez Guillen, Ernesto J."]
[Black "Oro, Faustino"]
[WhiteFideId "3512428"]
[BlackFideId "20000197"]
[WhiteElo "2450"]
[BlackElo "2066"]
[Result "1-0"]
[Round "09"]
[TimeControl "180+1"]
[Date "2022.11.22"]
[WhiteClock "0:00:38"]
[BlackClock "0:00:05"]

1. e4 {[%clk 0:03:00]}  e5 {[%clk 0:02:58]} 2. Nf3 {[%clk 0:02:53]}  Nc6 {[%clk 0:02:57]} 3. Bc4 {[%clk 0:02:49]}  Bc5 {[%clk 0:02:56]} 4. d4 {[%clk 0:02:49]}  exd4 {[%clk 0:02:53]} 5. O-O {[%clk 0:02:49]}  Nf6 {[%clk 0:02:30]} 6. e5 {[%clk 0:02:47]}  d5 {[%clk 0:02:29]} 7. exf6 {[%clk 0:02:48]}  dxc4 {[%clk 0:02:30]} 8. fxg7 {[%clk 0:02:49]}  Rg8 {[%clk 0:02:29]} 9. Bg5 {[%clk 0:02:50]}  Qd5 {[%clk 0:02:27]} 10. Nc3 {[%clk 0:02:49]}  Qf5 {[%clk 0:02:23]} 11. Ne4 {[%clk 0:02:50]}  Rxg7 {[%clk 0:01:37]} 12. Nh4 {[%clk 0:02:43]}  Qxe4 {[%clk 0:01:16]} 13. Re1 {[%clk 0:02:41]}  Qxe1+ {[%clk 0:01:16]} 14. Qxe1+ {[%clk 0:02:42]}  Be6 {[%clk 0:01:17]} 15. Bf6 {[%clk 0:02:43]}  Rg8 {[%clk 0:01:14]} 16. Rd1 {[%clk 0:02:41]}  Be7 {[%clk 0:00:47]} 17. Bxe7 {[%clk 0:02:39]}  Nxe7 {[%clk 0:00:48]} 18. Rxd4 {[%clk 0:02:38]}  Rg4 {[%clk 0:00:43]} 19. Rxg4 {[%clk 0:02:35]}  Bxg4 {[%clk 0:00:44]} 20. h3 {[%clk 0:02:34]}  Be6 {[%clk 0:00:43]} 21. Qd2 {[%clk 0:02:33]}  Ng6 {[%clk 0:00:40]} 22. Qg5 {[%clk 0:02:20]}  Rd8 {[%clk 0:00:25]} 23. Nf3 {[%clk 0:02:13]}  Rd5 {[%clk 0:00:22]} 24. Qh6 {[%clk 0:02:13]}  Nf8 {[%clk 0:00:21]} 25. Kh2 {[%clk 0:02:04]}  Bf5 {[%clk 0:00:21]} 26. c3 {[%clk 0:02:02]}  Bg6 {[%clk 0:00:20]} 27. Qe3+ {[%clk 0:02:01]}  Ne6 {[%clk 0:00:20]} 28. Qxa7 {[%clk 0:02:02]}  Rb5 {[%clk 0:00:20]} 29. b4 {[%clk 0:01:35]}  cxb3 {[%clk 0:00:19]} 30. axb3 {[%clk 0:01:36]}  c6 {[%clk 0:00:18]} 31. b4 {[%clk 0:01:35]}  Kd7 {[%clk 0:00:16]} 32. Qb8 {[%clk 0:01:34]}  f6 {[%clk 0:00:11]} 33. Qh8 {[%clk 0:00:57]}  Rf5 {[%clk 0:00:08]} 34. c4 {[%clk 0:00:50]}  Rf4 {[%clk 0:00:07]} 35. Qb8 {[%clk 0:00:48]}  Rxc4 {[%clk 0:00:07]} 36. Qxb7+ {[%clk 0:00:47]}  Kd6 {[%clk 0:00:08]} 37. Qb8+ {[%clk 0:00:47]}  Kd7 {[%clk 0:00:07]} 38. b5 {[%clk 0:00:46]}  Rc5 {[%clk 0:00:06]} 39. b6 {[%clk 0:00:45]}  Rb5 {[%clk 0:00:07]} 40. Qa7+ {[%clk 0:00:44]}  Kc8 {[%clk 0:00:06]} 41. Qe7 {[%clk 0:00:41]}  Nc5 {[%clk 0:00:05]} 42. Nd4 {[%clk 0:00:38]} 1-0


[Site "https://www.chess.com"]

[Event "Titled Tuesday Blitz November 22 Late 2022"]
[White "Figorito, Nick"]
[Black "Marchesich, Giovanni"]
[WhiteFideId "30923689"]
[BlackFideId "2824790"]
[WhiteElo "2281"]
[BlackElo "2200"]
[Result "0-1"]
[Round "09"]
[TimeControl "180+1"]
[Date "2022.11.23"]
[WhiteClock "0:01:30"]
[BlackClock "0:02:37"]

1. Nf3 {[%clk 0:03:00]}  b6 {[%clk 0:02:57]} 2. g3 {[%clk 0:03:01]}  Bb7 {[%clk 0:02:58]} 3. Bg2 {[%clk 0:03:02]}  g6 {[%clk 0:02:58]} 4. O-O {[%clk 0:03:02]}  Bg7 {[%clk 0:02:59]} 5. c4 {[%clk 0:03:02]}  e6 {[%clk 0:02:59]} 6. Nc3 {[%clk 0:03:03]}  Ne7 {[%clk 0:02:59]} 7. d3 {[%clk 0:03:03]}  d6 {[%clk 0:03:00]} 8. Rb1 {[%clk 0:03:01]}  a5 {[%clk 0:02:59]} 9. Bd2 {[%clk 0:03:00]}  O-O {[%clk 0:02:59]} 10. a3 {[%clk 0:03:00]}  Na6 {[%clk 0:02:58]} 11. b4 {[%clk 0:03:00]}  axb4 {[%clk 0:02:59]} 12. axb4 {[%clk 0:03:01]}  e5 {[%clk 0:02:57]} 13. b5 {[%clk 0:03:00]}  Nc5 {[%clk 0:02:57]} 14. Qc2 {[%clk 0:02:56]}  h6 {[%clk 0:02:57]} 15. Ra1 {[%clk 0:02:54]}  Qd7 {[%clk 0:02:57]} 16. e4 {[%clk 0:02:52]}  f5 {[%clk 0:02:56]} 17. Be3 {[%clk 0:02:40]}  g5 {[%clk 0:02:53]} 18. Bxc5 {[%clk 0:02:39]}  bxc5 {[%clk 0:02:54]} 19. exf5 {[%clk 0:02:35]}  Nxf5 {[%clk 0:02:54]} 20. Nxe5 {[%clk 0:02:26]}  Bxe5 {[%clk 0:02:45]} 21. Bxb7 {[%clk 0:02:26]}  Nd4 {[%clk 0:02:46]} 22. Qd2 {[%clk 0:02:03]}  Rxa1 {[%clk 0:02:43]} 23. Rxa1 {[%clk 0:02:04]}  Nb3 {[%clk 0:02:44]} 24. Bd5+ {[%clk 0:02:00]}  Kh8 {[%clk 0:02:42]} 25. Qa2 {[%clk 0:01:51]}  Nxa1 {[%clk 0:02:40]} 26. Qxa1 {[%clk 0:01:52]}  Qg7 {[%clk 0:02:40]} 27. Qe1 {[%clk 0:01:30]}  Bxc3 {[%clk 0:02:39]} 28. Qe6 {[%clk 0:01:30]}  Bd4 {[%clk 0:02:37]} 0-1


[Site "https://www.chess.com"]

[Event "Titled Tuesday Blitz November 22 Late 2022"]
[White "Gascon Del Nogal, Jose Rafael"]
[Black "Janaszak, Dawid"]
[WhiteFideId "3902463"]
[BlackFideId "1119206"]
[WhiteElo "2473"]
[BlackElo "2226"]
[Result "1/2-1/2"]
[Round "09"]
[TimeControl "180+1"]
[Date "2022.11.23"]
[WhiteClock "0:00:06"]
[BlackClock "0:00:12"]

1. Nf3 {[%clk 0:03:00]}  g6 {[%clk 0:02:57]} 2. e4 {[%clk 0:02:55]}  c5 {[%clk 0:02:56]} 3. d4 {[%clk 0:02:55]}  cxd4 {[%clk 0:02:56]} 4. Nxd4 {[%clk 0:02:55]}  Nc6 {[%clk 0:02:54]} 5. c4 {[%clk 0:02:55]}  Bg7 {[%clk 0:02:54]} 6. Be3 {[%clk 0:02:55]}  Qb6 {[%clk 0:02:55]} 7. Nb5 {[%clk 0:02:40]}  Qa5+ {[%clk 0:02:54]} 8. N5c3 {[%clk 0:02:41]}  Nf6 {[%clk 0:02:45]} 9. Bd3 {[%clk 0:02:38]}  Qb4 {[%clk 0:02:33]} 10. a3 {[%clk 0:02:22]}  Qa5 {[%clk 0:02:23]} 11. O-O {[%clk 0:02:20]}  d6 {[%clk 0:02:20]} 12. Nd5 {[%clk 0:01:38]}  O-O {[%clk 0:02:04]} 13. Nbc3 {[%clk 0:01:36]}  Be6 {[%clk 0:01:39]} 14. f3 {[%clk 0:01:21]}  Rfc8 {[%clk 0:01:36]} 15. Rc1 {[%clk 0:01:21]}  Bxd5 {[%clk 0:01:25]} 16. cxd5 {[%clk 0:01:12]}  Ne5 {[%clk 0:01:25]} 17. Qe2 {[%clk 0:00:57]}  Nxd3 {[%clk 0:01:22]} 18. Qxd3 {[%clk 0:00:57]}  Nd7 {[%clk 0:01:22]} 19. Qe2 {[%clk 0:00:39]}  Bxc3 {[%clk 0:01:11]} 20. bxc3 {[%clk 0:00:33]}  Rxc3 {[%clk 0:01:06]} 21. Bd4 {[%clk 0:00:20]}  Rcc8 {[%clk 0:00:52]} 22. Rb1 {[%clk 0:00:15]}  Qa4 {[%clk 0:00:46]} 23. Ba1 {[%clk 0:00:13]}  Rc2 {[%clk 0:00:43]} 24. Qd3 {[%clk 0:00:12]}  b6 {[%clk 0:00:32]} 25. Rb4 {[%clk 0:00:11]}  Qxb4 {[%clk 0:00:13]} 26. axb4 {[%clk 0:00:11]}  Rac8 {[%clk 0:00:14]} 27. h4 {[%clk 0:00:10]}  Ra2 {[%clk 0:00:13]} 28. Qd4 {[%clk 0:00:09]}  f6 {[%clk 0:00:12]} 29. h5 {[%clk 0:00:08]}  Rcc2 {[%clk 0:00:12]} 30. Rd1 {[%clk 0:00:06]}  Rxg2+ {[%clk 0:00:12]} 31. Kf1 {[%clk 0:00:07]}  Rh2 {[%clk 0:00:12]} 32. Kg1 {[%clk 0:00:06]}  Rhg2+ {[%clk 0:00:11]} 33. Kf1 {[%clk 0:00:06]}  Rh2 {[%clk 0:00:12]} 34. Kg1 {[%clk 0:00:06]}  Rhg2+ {[%clk 0:00:12]} 1/2-1/2


[Site "https://www.chess.com"]